Cogmind - Beta 15 @@@ ROGUE MODE // 2025.08.03 @ 21:35:29 Player: Rockstar Result: Destroyed by P-80 Master with Gamma Rifle Performance ------------- Evolutions (8) 4000 Regions Visited (18) 3600 Robots Destroyed (98) 490 Value Destroyed (4162) 4162 Prototype IDs (34) 680 Alien Tech Used (1) 200 Bonus (6210) 6210 TOTAL SCORE: 19342 Bonus ------- High Alert Combat Kills 515 Follower Combat Kills 3763 Met Imprinter 300 Was Imprinted 300 Met Zhirov 300 Built Enhanced Grunts 300 A7 Reached Mainframe 300 Met R17 at Cetus 500 Friendly Fire -68 Cogmind --------- Core Integrity 0/1450 Matter 290/300 Energy 99/100 System Corruption 9% Temperature Cool (2) Movement Hovering (60) Location -2/Testing Parts ------- > --- POWER (2) -------- (None) > --- PROPULSION (8) --- Experimental Gyrokinetic Inverter > --- UTILITY (10) ----- (None) > --- WEAPON (3) ------- (None) > --- INVENTORY (5) ---- Light Antimatter Reactor Compact Wheel Zionite Laser-S Nova Cannon Linear Accelerator Peak State ------------ > --- POWER ------------ Antimatter Reactor Antimatter Reactor > --- PROPULSION ------- Improved Treads Medium Treads Armored Medium Treads Armored Medium Treads Advanced Medium Treads Advanced Medium Treads > --- UTILITY ---------- Advanced Cooling System Medium Storage Unit Advanced Signal Interpreter Advanced Transmission Jammer Jamming Amplifier Layered Heavy Armor Plating Zionite Shade Armor Advanced Force Field Improved Corruption Screen > --- WEAPON ----------- Wave Gun Heavy Beamcaster Matter Neutralizer > --- INVENTORY -------- Reinforced Fission Core Light Antimatter Reactor Micro Antimatter Reactor Improved Treads Advanced Cooling System Improved Phase Shifter Improved Medium Armor Plating Improved Powered Armor Neutron Cannon Nova Cannon [Rating: 134] Favorites ----------- Power Antimatter Reactor Engine Light Deuterium Engine Power Core Light Nuclear Core Reactor Antimatter Reactor Propulsion Armored Medium Treads Treads Armored Medium Treads Leg VSS Leg Hover Unit Gravmag Array Flight Unit VTOL Module Utility Advanced Signal Interpreter Device Advanced Heat Sink Storage Small Storage Unit Processor Advanced Signal Interpreter Hackware Improved Hacking Suite Protection Utility Shielding Weapon Heavy Beamcaster Energy Gun Heavy Beamcaster Energy Cannon Matter Neutralizer Ballistic Gun Autogun Ballistic Cannon Light Cannon Special Weapon RU-N14's Throwing Claymores Impact Weapon Heavy Mace Slashing Weapon Katana Special Melee Weapon Dirty Datajack Build | -11 -10 -10 -9 -9 -7 -6 -6 -5 -5 -5 -5 -4 -4 -4 -4 -3 -2 -2 ------- Run | Yrd Mat Min Mat Min Zio Pro Fac Fac Upp Upp Zhi Pro Fac Ext Cet Res Res Tes Slots Evolved 16 | . . . 2 . . . 6 2 . . . . 2 . . 2 2 . Power 1 | . . . . . . . 1 . . . . . . . . . . . Propulsion 6 | . . . . . . . 2 1 . . . . 1 . . . 2 . Utility 8 | . . . 2 . . . 2 1 . . . . 1 . . 2 . . Weapon 1 | . . . . . . . 1 . . . . . . . . . . . Parts Attached 233 | 6 5 2 10 . 3 18 37 18 6 3 3 . 19 33 2 25 29 14 Power 31 | 1 . . 1 . . 3 6 1 1 . 1 . 2 6 . 1 3 5 Engine 8 | 1 . . 1 . . 2 3 1 . . . . . . . . . . Core 11 | . . . . . . 1 3 . 1 . . . 2 4 . . . . Reactor 12 | . . . . . . . . . . . 1 . . 2 . 1 3 5 Propulsion 81 | 2 2 2 2 . . 6 13 6 1 . . . 10 10 . 9 12 6 Treads 19 | . . 2 2 . . 4 1 . . . . . . 5 . 3 . 2 Leg 30 | 2 2 . . . . 2 7 3 . . . . 7 2 . 1 2 2 Wheel . | . . . . . . . . . . . . . . . . . . . Hover 19 | . . . . . . . 3 . . . . . 3 3 . 5 3 2 Flight 13 | . . . . . . . 2 3 1 . . . . . . . 7 . Utility 77 | 1 1 . 5 . . 5 10 6 3 1 2 . 3 13 1 12 12 2 Device 45 | . 1 . 4 . . 5 6 4 2 . . . 2 6 1 6 6 2 Storage 6 | 1 . . . . . . . . . . 1 . . 2 . 1 1 . Processor 10 | . . . . . . . 2 1 1 1 . . 1 . . 3 1 . Hackware 1 | . . . . . . . . . . . . . . 1 . . . . Protection 15 | . . . 1 . . . 2 1 . . 1 . . 4 . 2 4 . Artifact . | . . . . . . . . . . . . . . . . . . . Weapon 44 | 2 2 . 2 . 3 4 8 5 1 2 . . 4 4 1 3 2 1 Energy Gun 14 | 2 . . . . 2 2 . 2 1 . . . 1 2 . 1 1 . Energy Cannon 14 | . . . . . . . 7 2 . . . . 2 1 1 1 . . Ballistic Gun 3 | . 1 . 2 . . . . . . . . . . . . . . . Ballistic Cannon 4 | . 1 . . . . . . . . . . . . 1 . . 1 1 Launcher . | . . . . . . . . . . . . . . . . . . . Special Weapon 4 | . . . . . 1 2 . . . . . . . . . 1 . . Impact Weapon 1 | . . . . . . . . . . . . . 1 . . . . . Slashing Weapon 2 | . . . . . . . 1 1 . . . . . . . . . . Piercing Weapon . | . . . . . . . . . . . . . . . . . . . Special Melee Weapon 2 | . . . . . . . . . . 2 . . . . . . . . Unidentified Prototypes 12 | . . . . . 1 . . . . . 4 . . . 1 2 3 1 Parts Lost 143 | . . . 3 . . 13 26 12 2 1 . . 22 3 . 27 21 13 Power 26 | . . . 1 . . 2 7 2 . . . . 4 . . 3 3 4 Propulsion 59 | . . . 1 . . 5 8 5 2 1 . . 10 1 . 10 10 6 Utility 45 | . . . 1 . . 4 8 2 . . . . 5 2 . 12 8 3 Weapon 13 | . . . . . . 2 3 3 . . . . 3 . . 2 . . Highest Loss Streak 22 | . . . 3 . . 3 22 12 2 1 . . 16 2 . 13 19 12 To Critical Strikes 4 | . . . . . . . 1 . . . . . . . . 2 . 1 Average Backups 7 | 1 4 8 7 8 7 7 6 3 4 4 5 5 3 8 9 8 4 4 Power 1 | . 1 1 2 3 2 1 . . . . . 1 . 1 3 2 . 1 Propulsion 1 | . 1 3 2 2 1 . 1 1 . . . . . . . . 1 . Utility 1 | . . . . . . . . . 1 1 . . . 3 3 2 . . Weapon 2 | . 1 2 2 3 3 4 3 1 2 2 4 4 3 2 2 2 2 2 Tool/Special . | . . . . . . . . . . . . . . . . . . . Unused Backups 34 | . 5 1 . . 6 . 2 1 . 1 . . . 6 . 5 2 5 Power 9 | . 1 . . . 1 . . . . . . . . 2 . 3 . 2 Propulsion 8 | . 2 . . . 1 . . 1 . . . . . 2 . 1 . 1 Utility 3 | . . . . . . . . . . . . . . 2 . . . 1 Weapon 14 | . 2 1 . . 4 . 2 . . 1 . . . . . 1 2 1 Tool/Special . | . . . . . . . . . . . . . . . . . . . Average Slot Usage (%) 83 | . 93 98 96 100 100 89 85 53 70 79 70 70 67 82 93 83 50 27 Engine 4 | . 14 14 11 11 11 9 5 . . . . . . . . . . . Core 1 | . . . . . . . 5 . 2 5 5 5 2 2 . . . . Reactor 2 | . . . . . . . . . . . . . 2 5 10 7 3 4 Treads 12 | . . 20 22 22 22 15 . . . . . . . 12 26 21 . 2 Leg 6 | . 28 6 . . . 4 21 2 . . . . 15 5 5 2 7 . Hover 1 | . . . . . . . . . . . . . 1 5 . 1 4 8 Flight 2 | . . . . . . . . 17 24 21 17 17 1 . . . 5 . Device 16 | . 7 14 25 22 22 20 16 8 9 22 15 11 12 16 15 14 13 2 Storage 6 | . 14 14 11 11 11 10 5 . . . . . . 3 5 3 5 . Processor 6 | . . . . . . . 5 7 12 17 17 17 14 12 10 10 2 4 Protection 5 | . . . 3 11 11 6 4 1 4 . 7 11 5 4 5 6 3 1 Energy Gun 9 | . 25 . . . 18 17 2 5 8 3 . . 1 7 13 7 2 . Energy Cannon 1 | . . . . . . . 9 1 . . . . 1 . . 3 . . Ballistic Gun 1 | . 1 14 15 22 2 . . . . . . . . . . . . . Peak Build Rating 134 | 6 7 8 15 15 26 34 61 53 61 64 67 60 109 103 105 134 132 72 Average Rating 58 | 4 6 7 12 15 21 27 49 36 50 60 57 60 79 91 102 109 74 52 On Entrance 37 | . 6 7 8 15 15 26 31 20 47 61 56 60 60 55 103 105 14 31 Naked Turns 5 | . . . . . . 5 . . . . . . . . . . . . Heaviest Build 125 | 13 16 16 20 20 27 30 51 27 19 18 14 14 34 78 86 125 60 41 Greatest Support 166 | 20 20 40 40 40 40 56 52 72 22 19 14 14 90 128 128 166 80 65 Greatest Overweight (x) 8 | 1 . 5 . . . 1 3 8 . 1 . . 2 2 . 2 2 1 Average Overweight (x) . | . . . . . . . . . . . . . . . . . . . Largest Inventory Capacity 15 | 8 8 8 8 8 8 8 8 5 5 5 5 5 5 15 10 10 10 5 Average Capacity 8 | 7 8 8 8 8 8 7 7 5 5 5 5 5 5 9 10 9 8 5 Most Carried 15 | 2 8 8 8 8 8 8 8 5 5 5 5 5 5 15 10 10 10 5 Average Carried 7 | 1 4 7 7 8 7 7 6 3 4 4 4 5 3 8 9 8 4 4 Final Capacity 10 | 8 8 8 8 8 8 8 5 5 5 5 5 5 5 10 10 5 5 5 Final Carried 10 | 2 8 8 8 8 8 8 5 5 4 5 5 5 5 10 10 5 5 5 Class Distribution -------------------- 36% | Mutant 20% | Scavenger-Tank 20% | Scavenger-Mutant 7% | Scavenger-Skirmisher 5% | Scavenger-Sprinter 3% | Commander-Mutant Dominant Class ---------------- Mutant | -10/Materials Mutant | -10/Mines Scavenger-Mutant | -9/Materials Mutant | -9/Mines Mutant | -7/Zion Scavenger-Mutant | -6/Proximity Caves Scavenger-Skirmisher | -6/Factory Scavenger-Sprinter | -5/Factory Scavenger-Sprinter | -5/Upper Caves Scavenger-Sprinter | -5/Upper Caves Sprinter | -5/Zhirov Sprinter | -4/Proximity Caves Mutant | -4/Factory Scavenger-Mutant | -4/Extension Scavenger-Tank | -4/Cetus Scavenger-Tank | -3/Research Messiah-Mutant | -2/Research Mutant | -2/Testing Resources | -11 -10 -10 -9 -9 -7 -6 -6 -5 -5 -5 -5 -4 -4 -4 -4 -3 -2 -2 ----------- Run | Yrd Mat Min Mat Min Zio Pro Fac Fac Upp Upp Zhi Pro Fac Ext Cet Res Res Tes Matter Collected 3031 | 190 132 96 175 . 60 334 324 202 110 34 . . 136 395 30 210 462 141 Remotely 382 | . 62 96 83 . . . . . . . . . . . . . . 141 Salvage Created 4337 | . 395 63 217 . . 808 429 309 62 . . . 263 668 . 667 456 . Parts 178 | . 26 3 7 . . 31 31 9 2 . . . 8 20 . 17 24 . Haulers Intercepted 3 | . 2 . . . . . . . . . . . . 1 . . . . Recyclers Shooed 8 | . 1 1 . . . . . . . . . . . . . 1 4 1 Parts Field Recycled . | . . . . . . . . . . . . . . . . . . . Retrieved Matter . | . . . . . . . . . . . . . . . . . . . Parts Self-Destructed 28 | . . . . . . 27 . . 1 . . . . . . . . . Prevented 3 | . . . . . . 3 . . . . . . . . . . . . Kills | -11 -10 -10 -9 -9 -7 -6 -6 -5 -5 -5 -5 -4 -4 -4 -4 -3 -2 -2 ------- Run | Yrd Mat Min Mat Min Zio Pro Fac Fac Upp Upp Zhi Pro Fac Ext Cet Res Res Tes Combat Hostiles Destroyed 84 | . 8 2 6 . . 18 15 6 1 . . . 4 6 . 11 7 . Melee 6 | . . . . . . . 1 4 . . . . . . . 1 . . Guns 34 | . 8 . 4 . . 9 . . 1 . . . . 2 . 8 2 . Cannons 23 | . . 2 2 . . 1 6 2 . . . . 1 3 . 1 5 . AOE 18 | . . . . . . 8 8 . . . . . 2 . . . . . Classes Destroyed 15 | . 6 . 1 . . 3 4 . . . . . . . . . 1 . Worker 5 | . 1 . . . . . 2 . . . . . . . . 2 . . Builder 1 | . . . . . . . . . . . . . . . . . 1 . Hauler 3 | . 2 . . . . . . . . . . . . 1 . . . . Recycler 4 | . 1 . . . . . . . . . . . 1 1 . . 1 . Watcher 1 | . 1 . . . . . . . . . . . . . . . . . Swarmer 25 | . 6 . . . . 5 2 2 . . . . 3 . . 3 4 . Saboteur 2 | . . . . . . . 1 . . . . . . . . 1 . . Grunt 24 | . 2 2 5 . . 6 . 4 . . . . . 1 . 3 1 . Brawler 4 | . . . 1 . . 2 . . . . . . . . . 1 . . Duelist 1 | . . . . . . 1 . . . . . . . . . . . . Protector 1 | . . . . . . . 1 . . . . . . . . . . . Sentry 8 | . . . . . . 2 1 . . . . . 1 2 . 2 . . Specialist 1 | . . . . . . . 1 . . . . . . . . . . . Hunter 9 | . . . . . . 2 2 . 1 . . . . 3 . 1 . . Programmer 9 | . . . . . . . 7 . . . . . . . . . 2 . Best Kill Streak 12 | . 5 2 4 . . 4 12 5 1 . . . 2 2 . 11 5 . Combat Bots Only 10 | . 3 2 4 . . 4 10 5 1 . . . 2 2 . 6 4 . Max Kills in Single Turn 6 | . 2 1 1 . . 3 6 1 1 . . . 2 1 . 1 1 . Gunslinging 1 | . 1 . . . . . . . . . . . . . . . . . Exploded 4 | . . . . . . 3 4 . . . . . 2 . . . . . Melee 1 | . . . . . . . 1 1 . . . . . . . 1 . . Uniques/NPCs Destroyed . | . . . . . . . . . . . . . . . . . . . Combat | -11 -10 -10 -9 -9 -7 -6 -6 -5 -5 -5 -5 -4 -4 -4 -4 -3 -2 -2 -------- Run | Yrd Mat Min Mat Min Zio Pro Fac Fac Upp Upp Zhi Pro Fac Ext Cet Res Res Tes Hostile Shots Fired 2013 | . 40 10 46 . . 170 338 143 18 3 . 1 194 103 14 526 241 166 Missed 771 | . 10 5 11 . . 56 135 30 6 1 . . 87 48 6 212 109 55 Hits 1242 | . 30 5 35 . . 114 203 113 12 2 . 1 107 55 8 314 132 111 Melee 21 | . . . 2 . . 1 2 . . . . . . . . 16 . . Projectile 1221 | . 30 5 33 . . 113 201 113 12 2 . 1 107 55 8 298 132 111 AOE 1 | . . . . . . . . . . . . . 1 . . . . . Critical Strikes 43 | . 1 . . . . 4 5 1 . . . . 4 4 . 14 4 6 Actively Blocked 3 | . . . . . . . 1 . . . . . 2 . . . . . Part Disruptions 3 | . . . . . . . 1 . . . . . . . . . . 2 Actively Blocked 1 | . . . . . . . 1 . . . . . . . . . . . Damage Taken 22132 | . 266 83 411 . . 1877 3163 1943 201 35 . 13 2353 1164 137 5484 2557 2445 Core 4992 | . 51 . 64 . . 322 822 640 38 . . 8 483 107 13 989 608 847 Absorbed by Shields 721 | . . . . . . . . . . . . . . 175 . 546 . . Redirected to Shielding 693 | . . . . . . 44 131 . . . . 5 250 . . . 190 73 Ignored by Resistances 1219 | . . . . . . . . . . . . . . 38 50 477 654 . Core Remaining (%) 40 | 100 . 79 . . . 3 3 . . . . 31 . . 47 23 . . Volleys Fired 276 | 1 29 8 23 . . 48 20 3 3 . . . 10 44 . 51 34 2 Largest 3 | 2 2 2 2 . . 2 3 2 2 . . . 2 3 . 3 2 2 Hottest 267 | 90 90 50 50 . . 156 180 180 150 . . . 169 213 . 267 173 114 Shots Fired 494 | 2 58 16 46 . . 82 37 5 5 . . . 12 68 . 109 50 4 Gun 339 | 2 58 8 36 . . 74 1 . 5 . . . 5 47 . 68 33 2 Cannon 142 | . . 8 10 . . . 33 5 . . . . 7 21 . 39 17 2 Launcher . | . . . . . . . . . . . . . . . . . . . Special 13 | . . . . . . 8 3 . . . . . . . . 2 . . Kinetic 79 | . 4 16 46 . . . . . . . . . . . . . 11 2 Thermal 395 | 2 54 . . . . 74 34 5 5 . . . 5 68 . 107 39 2 Explosive 11 | . . . . . . 8 3 . . . . . . . . . . . Electromagnetic 7 | . . . . . . . . . . . . . 7 . . . . . Robot Hit Streak 19 | 1 6 4 6 . . 12 12 6 7 . . . 3 10 . 19 9 1 Robot Miss Streak 4 | 1 3 2 3 . . 4 3 1 . . . . 2 2 . 4 4 3 Penetration Max 1 | . . . . . . . . . . . . . . . . . 1 . Secondary Targets 7 | . 2 . . . . 3 . . . . . . . 1 . 1 . . Max Gunslinging Chain 1 | . 1 . . . . 1 . . . . . . . 1 . 1 . . Shots Hit Robots 350 | 1 35 11 28 . . 61 22 22 8 . . . 11 45 . 73 32 1 Core Hits 169 | . 18 3 10 . . 30 21 10 2 . . . 4 20 . 33 18 . Critical Kills . | . . . . . . . . . . . . . . . . . . . Critical Parts Destroyed 2 | . . . . . . . . . . . . . 2 . . . . . Critical Strikes 23 | . 1 . . . . 8 . 2 1 . . . 2 1 . 7 1 . Burn 16 | . 1 . . . . 7 . . . . . . . 1 . 7 . . Blast 1 | . . . . . . . . . . . . . . . . . 1 . Smash 2 | . . . . . . . . . . . . . 2 . . . . . Sever 4 | . . . . . . 1 . 2 1 . . . . . . . . . Melee Attacks 37 | . . . . . . . . 26 3 . . . 8 . . . . . Impact 5 | . . . . . . . . . . . . . 5 . . . . . Slashing 29 | . . . . . . . . 26 3 . . . . . . . . . Piercing 3 | . . . . . . . . . . . . . 3 . . . . . Sneak Attacks 1 | . . . . . . . . 1 . . . . . . . . . . Combat Hostiles 1 | . . . . . . . . 1 . . . . . . . . . . Follow-up Attacks . | . . . . . . . . . . . . . . . . . . . Damage Inflicted 12088 | 13 446 164 442 . . 2608 2045 758 206 . . . 500 1262 . 2315 1283 46 Guns 4903 | 13 446 74 345 . . 1232 . . 109 . . . 22 699 . 1234 702 27 Cannons 3264 | . . 90 97 . . . 689 134 . . . . 172 541 . 960 581 . Explosions 2617 | . . . . . . 1127 1285 . . . . . 205 . . . . . Melee 822 | . . . . . . . . 624 97 . . . 101 . . . . . Ramming 162 | . . . . . . . . . . . . . . 22 . 121 . 19 Kinetic 998 | . 10 164 442 . . . . . . . . . . . . . 382 . Thermal 7040 | 13 436 . . . . 1232 732 134 109 . . . 22 1240 . 2194 901 27 Explosive 2574 | . . . . . . 1127 1242 . . . . . 205 . . . . . Electromagnetic 172 | . . . . . . . . . . . . . 172 . . . . . Impact 93 | . . . . . . . . . . . . . 93 . . . . . Slashing 1041 | . . . . . . 249 71 624 97 . . . . . . . . . Piercing 8 | . . . . . . . . . . . . . 8 . . . . . Highest Corruption 9 | . . . . . . . 7 . . . . . . . . . . 9 Average Corruption 4 | . . . . . . . 4 . . . . . . . . . . 6 Corruption Purged . | . . . . . . . . . . . . . . . . . . . Corruption Blocked 7 | . . . . . . . . . . . . . 4 . . 3 . . Effects 9 | . . . . . . . 9 . . . . . . . . . . . Message Errors 4 | . . . . . . . 4 . . . . . . . . . . . Heat Flow Errors 1 | . . . . . . . 1 . . . . . . . . . . . Energy Discharges 1 | . . . . . . . 1 . . . . . . . . . . . Data Loss (minor) 1 | . . . . . . . 1 . . . . . . . . . . . Data Loss (major) 1 | . . . . . . . 1 . . . . . . . . . . . Alerts 1 | . . . . . . . 1 . . . . . . . . . . . Overload Shots . | . . . . . . . . . . . . . . . . . . . Overflow Damage 224 | . . . . . . . 50 37 . . . . 114 . . . 23 . Projectiles 51 | . . . . . . . 20 . . . . . 8 . . . 23 . Explosions 73 | . . . . . . . 30 . . . . . 43 . . . . . Melee 100 | . . . . . . . . 37 . . . . 63 . . . . . Knockbacks 8 | . . 2 . . . . . . . . . . 2 . . . 4 . Impact 2 | . . . . . . . . . . . . . 2 . . . . . Kinetic 6 | . . 2 . . . . . . . . . . . . . . 4 . Secondary . | . . . . . . . . . . . . . . . . . . . Self-Inflicted Damage 65 | . . . . . . . . . . . . . 59 . . 1 . 5 Shots 1 | . . . . . . . . . . . . . 1 . . . . . Rammed 14 | . . . . . . . . 1 . . . . . 1 . 8 . 4 Targets Rammed 14 | . . . . . . . . 1 . . . . . 1 . 8 . 4 Kicked . | . . . . . . . . . . . . . . . . . . . Crushed . | . . . . . . . . . . . . . . . . . . . Highest Temperature 468 | 30 202 5 . . . 192 281 69 123 . . . 24 301 . 468 . . Average Temperature 91 | 18 72 3 . . . 67 106 31 58 . . . 9 118 . 129 . . Received Heat Transfer 2902 | . 66 45 198 . . 501 231 546 . 9 . . 438 179 . 464 225 . Effects 8 | . . . . . . . 3 . . . . . . 1 . 4 . . Energy Bleed 1 | . . . . . . . . . . . . . . 1 . . . . Interference 3 | . . . . . . . 3 . . . . . . . . . . . Damage (major) 4 | . . . . . . . . . . . . . . . . 4 . . Siege Activations . | . . . . . . . . . . . . . . . . . . . Martial Activations . | . . . . . . . . . . . . . . . . . . . Shielding Activations . | . . . . . . . . . . . . . . . . . . . Robots Disrupted . | . . . . . . . . . . . . . . . . . . . Combat Hostiles . | . . . . . . . . . . . . . . . . . . . Robots Corrupted 1 | . . . . . . . . . . . . . 1 . . . . . Combat Hostiles 1 | . . . . . . . . . . . . . 1 . . . . . Parts Fried 2 | . . . . . . . . . . . . . 1 1 . . . . Impact Corruptions 2 | . . . . . . . . . . . . . 2 . . . . . Robots Melted 2 | . . . . . . . . . . . . . . 1 . 1 . . Combat Hostiles 2 | . . . . . . . . . . . . . . 1 . 1 . . Parts Melted 26 | . 4 . . . . 5 3 . 1 . . . . 2 . 9 2 . Heat Transferred 11352 | 37 1250 . . . . 2627 840 161 185 . . . 37 1923 . 3182 1073 37 Parts Sabotaged 14 | . . . . . . . 6 . . . . . . . . 8 . . Parts Stolen . | . . . . . . . . . . . . . . . . . . . Parts Stripped . | . . . . . . . . . . . . . . . . . . . Power Chain Reactions . | . . . . . . . . . . . . . . . . . . . Alert | -11 -10 -10 -9 -9 -7 -6 -6 -5 -5 -5 -5 -4 -4 -4 -4 -3 -2 -2 ------- Run | Yrd Mat Min Mat Min Zio Pro Fac Fac Upp Upp Zhi Pro Fac Ext Cet Res Res Tes Maximum Alert Level 4 | . . . . . . . 1 . . . . . 1 3 2 4 3 2 Low Security (%) 43 | 100 100 100 100 100 . . 94 100 . . . . 95 22 . 6 . . Level 1 12 | . . . . . . . 5 . . . . . 4 20 2 34 . 5 Level 2 31 | . . . . . . . . . . . . . . 48 97 15 67 94 Level 3 11 | . . . . . . . . . . . . . . 9 . 35 32 . Level 4 1 | . . . . . . . . . . . . . . . . 7 . . Level 5 . | . . . . . . . . . . . . . . . . . . . High Security . | . . . . . . . . . . . . . . . . . . . Max Security . | . . . . . . . . . . . . . . . . . . . Peak Influence 1163 | . 104 41 80 14 . . 279 99 . . . . 207 794 577 1163 1009 504 Initial 646 | . . 31 . 14 . . 121 57 . . . . 18 20 428 287 646 504 Average 340 | . 44 16 31 7 . . 54 39 . . . . 83 396 483 629 673 453 Influence Increases 6965 | . 221 50 157 . . 613 521 237 30 60 . 60 282 1491 489 1917 786 51 Destroy 0b10 Robot/C 3160 | . 160 40 120 . . 480 280 120 20 . . . 80 640 200 800 220 . Destroy 0b10 Robot/NC 200 | . 25 . . . . . 15 . . . . . 5 90 10 35 20 . Destroy Leader 488 | . 36 10 20 . . 50 60 10 10 . . . 10 96 10 144 32 . Allied During Kill 1309 | . . . . . . 38 . . . . . . . 507 220 516 28 . Successful Hack 14 | . . . . . . . . . . . . . . 14 . . . . Disable Machine 105 | . . . . . . . 60 . . . . . 30 15 . . . . Destroy Structure 444 | . . . 2 . . . 61 2 . . . . 52 114 34 122 51 6 Partial Spotted 90 | . . . . . . . 30 . . . . . . 15 . 15 30 . Lose Combat Pursuer 1155 | . . . 15 . . 45 15 105 . 60 . 60 105 . 15 285 405 45 Influence Decreases 6630 | . 140 130 121 37 . 419 597 351 34 10 50 30 270 767 776 1246 1038 614 Entered New Map 1723 | . . 50 1 23 . . 73 61 3 . 50 . 12 22 338 192 504 394 Time Decay 2777 | . 140 80 110 14 . 279 262 170 31 10 . 30 80 475 278 474 254 90 Lost Part 1320 | . . . 10 . . 120 252 120 . . . . 178 30 . 270 210 130 Lost Ally 810 | . . . . . . 20 10 . . . . . . 240 160 310 70 . Squads Dispatched 43 | . 5 . 3 . . 1 5 1 . . . . . 8 1 10 8 1 Investigation 13 | . 2 . 2 . . . 2 1 . . . . . 3 1 1 1 . Extermination 8 | . . . . . . . 3 . . . . . . . . 3 2 . Reinforcement 12 | . 3 . 1 . . . . . . . . . . 4 . 2 1 1 Assault 5 | . . . . . . 1 . . . . . . . 1 . 2 1 . Garrison 5 | . . . . . . . . . . . . . . . . 2 3 . Intercept . | . . . . . . . . . . . . . . . . . . . Searches Triggered . | . . . . . . . . . . . . . . . . . . . Construction Impeded 3 | . . . . . . . . . . . . . . 2 . . 1 . Haulers Reinforced . | . . . . . . . . . . . . . . . . . . . Active Scanning Responses . | . . . . . . . . . . . . . . . . . . . Cargo Convoy Interrupts 2 | . . . . . . . 1 . . . . . . . . 1 . . Stealth | -11 -10 -10 -9 -9 -7 -6 -6 -5 -5 -5 -5 -4 -4 -4 -4 -3 -2 -2 --------- Run | Yrd Mat Min Mat Min Zio Pro Fac Fac Upp Upp Zhi Pro Fac Ext Cet Res Res Tes Distress Signals 19 | . 1 . 1 . . . 3 . . . . . . 3 2 2 6 1 Communications Jammed 144 | . . . . . . . . . . . . . . 58 . 86 . . Distress Signals 142 | . . . . . . . . . . . . . . 58 . 84 . . Times Spotted 342 | . 15 2 10 . . 29 42 16 2 4 . 4 20 35 13 74 64 12 Peak Tracking Total 24 | . 4 1 5 . . 9 15 8 6 4 . 4 9 6 5 19 24 11 Tactical Retreats 26 | . . . 1 . . 2 1 4 . 1 . 1 2 . 1 7 5 1 Traps | -11 -10 -10 -9 -9 -7 -6 -6 -5 -5 -5 -5 -4 -4 -4 -4 -3 -2 -2 ------- Run | Yrd Mat Min Mat Min Zio Pro Fac Fac Upp Upp Zhi Pro Fac Ext Cet Res Res Tes Traps Triggered 9 | . 2 1 1 . . . . . . . . . . 1 . 1 3 . Indirectly . | . . . . . . . . . . . . . . . . . . . Trap Hack Attempts . | . . . . . . . . . . . . . . . . . . . Triggered . | . . . . . . . . . . . . . . . . . . . Disarmed . | . . . . . . . . . . . . . . . . . . . Reprogrammed . | . . . . . . . . . . . . . . . . . . . Reused . | . . . . . . . . . . . . . . . . . . . Traps Extracted . | . . . . . . . . . . . . . . . . . . . Installed . | . . . . . . . . . . . . . . . . . . . Triggered . | . . . . . . . . . . . . . . . . . . . Machines | -11 -10 -10 -9 -9 -7 -6 -6 -5 -5 -5 -5 -4 -4 -4 -4 -3 -2 -2 ---------- Run | Yrd Mat Min Mat Min Zio Pro Fac Fac Upp Upp Zhi Pro Fac Ext Cet Res Res Tes Machines Disabled 9 | . . . . . . . 4 . . . . . 2 2 1 . . . Max in Single Turn 2 | . . . . . . . 2 . . . . . 1 . . . . . Machines Repaired . | . . . . . . . . . . . . . . . . . . . Machines Dismantled . | . . . . . . . . . . . . . . . . . . . Machines Sabotaged . | . . . . . . . . . . . . . . . . . . . Overloaded Fab Kills . | . . . . . . . . . . . . . . . . . . . Hacking | -11 -10 -10 -9 -9 -7 -6 -6 -5 -5 -5 -5 -4 -4 -4 -4 -3 -2 -2 --------- Run | Yrd Mat Min Mat Min Zio Pro Fac Fac Upp Upp Zhi Pro Fac Ext Cet Res Res Tes Machines Accessed 23 | . 3 1 2 . . . 2 1 . 1 4 . . 5 3 . 1 . Terminals 11 | . 3 . 1 . . . . . . . . . . 4 3 . . . Fabricators 2 | . . . . . . . 1 . . . . . . . . . 1 . Repair Stations 1 | . . . . . . . 1 . . . . . . . . . . . Recycling Units 2 | . . . . . . . . 1 . . . . . 1 . . . . Scanalyzers 1 | . . . 1 . . . . . . . . . . . . . . . Garrison Access . | . . . . . . . . . . . . . . . . . . . Total Hacks 54 | . 3 1 6 . . . 4 5 . 1 17 . . 10 5 . 2 . Successful 34 | . 1 1 4 . . . 1 4 . 1 17 . . 2 3 . . . Failed 20 | . 2 . 2 . . . 3 1 . . . . . 8 2 . 2 . Catastrophic 8 | . 2 . 1 . . . 1 . . . . . . 3 1 . . . Database Lockouts . | . . . . . . . . . . . . . . . . . . . Manual 62 | . 3 . . . . . 15 3 . . . . . 15 1 15 7 3 Terminals 19 | . 3 . 3 . . . . . . . . . . 8 5 . . . Fabricators 3 | . . . . . . . 1 . . . . . . . . . 2 . Repair Stations 3 | . . . . . . . 3 . . . . . . . . . . . Recycling Units 7 | . . . . . . . . 5 . . . . . 2 . . . . Scanalyzers 3 | . . . 3 . . . . . . . . . . . . . . . Garrison Access . | . . . . . . . . . . . . . . . . . . . Terminal Hacks 26 | . 1 1 1 . . . . . . 1 17 . . 2 3 . . . Record 7 | . . . . . . . . . . . 5 . . . 2 . . . Part Schematic 4 | . . . . . . . . . . . 4 . . . . . . . Robot Analysis 4 | . . . . . . . . . . . 4 . . . . . . . Prototype ID Bank 4 | . . . . . . . . . . . 4 . . . . . . . Open Door 5 | . . 1 . . . . . . . 1 . . . 2 1 . . . Recall Investigation 2 | . 1 . 1 . . . . . . . . . . . . . . . Fabricator Hacks . | . . . . . . . . . . . . . . . . . . . Repair Station Hacks 1 | . . . . . . . 1 . . . . . . . . . . . Scan Component 1 | . . . . . . . 1 . . . . . . . . . . . Recycling Unit Hacks 2 | . . . . . . . . 2 . . . . . . . . . . Retrieve Matter 1 | . . . . . . . . 1 . . . . . . . . . . Retrieve Components 1 | . . . . . . . . 1 . . . . . . . . . . Scanalyzer 3 | . . . 3 . . . . . . . . . . . . . . . Insert Component 2 | . . . 2 . . . . . . . . . . . . . . . Analyze 1 | . . . 1 . . . . . . . . . . . . . . . Garrison Access Hacks . | . . . . . . . . . . . . . . . . . . . Unauthorized Hacks 2 | . . . . . . . . 2 . . . . . . . . . . Terminals . | . . . . . . . . . . . . . . . . . . . Fabricators . | . . . . . . . . . . . . . . . . . . . Repair Stations . | . . . . . . . . . . . . . . . . . . . Recycling Units 2 | . . . . . . . . 2 . . . . . . . . . . Reject 1 | . . . . . . . . 1 . . . . . . . . . . Mask 1 | . . . . . . . . 1 . . . . . . . . . . Scanalyzers . | . . . . . . . . . . . . . . . . . . . Garrison Access . | . . . . . . . . . . . . . . . . . . . Data Cores Recovered . | . . . . . . . . . . . . . . . . . . . Used . | . . . . . . . . . . . . . . . . . . . Hacking Detections 13 | . 3 . 2 . . . 2 . . . . . . 3 2 . 1 . Full Trace Events 6 | . . . 2 . . . 1 . . . . . . 2 1 . . . Feedback Events . | . . . . . . . . . . . . . . . . . . . Feedback Blocked . | . . . . . . . . . . . . . . . . . . . Robot Schematics Acquired 3 | . . . . . 3 . . . . . . . . . . . . . Robots Built . | . . . . . . . . . . . . . . . . . . . Authchips . | . . . . . . . . . . . . . . . . . . . Time . | . . . . . . . . . . . . . . . . . . . Total Robot Build Rating . | . . . . . . . . . . . . . . . . . . . Part Schematics Acquired 20 | . . . 1 . 15 . . . . . 4 . . . . . . . Parts Built . | . . . . . . . . . . . . . . . . . . . Authchips . | . . . . . . . . . . . . . . . . . . . Time . | . . . . . . . . . . . . . . . . . . . Total Part Build Rating . | . . . . . . . . . . . . . . . . . . . Parts Repaired . | . . . . . . . . . . . . . . . . . . . Time . | . . . . . . . . . . . . . . . . . . . Parts Recycled . | . . . . . . . . . . . . . . . . . . . Recycled Matter . | . . . . . . . . . . . . . . . . . . . Retrieved Matter . | . . . . . . . . . . . . . . . . . . . Retrieved Components . | . . . . . . . . . . . . . . . . . . . Parts Scanalyzed 1 | . . . 1 . . . . . . . . . . . . . . . Part Schematics Acquired 1 | . . . 1 . . . . . . . . . . . . . . . Parts Damaged . | . . . . . . . . . . . . . . . . . . . Bothacking | -11 -10 -10 -9 -9 -7 -6 -6 -5 -5 -5 -5 -4 -4 -4 -4 -3 -2 -2 ------------ Run | Yrd Mat Min Mat Min Zio Pro Fac Fac Upp Upp Zhi Pro Fac Ext Cet Res Res Tes Used RIF Installer . | . . . . . . . . . . . . . . . . . . . Robots Hacked 2 | . . . . . . . . . . . . . . . . 2 . . Non-combat . | . . . . . . . . . . . . . . . . . . . Combat 2 | . . . . . . . . . . . . . . . . 2 . . Robot Hacks Applied 2 | . . . . . . . . . . . . . . . . 2 . . parse_system 2 | . . . . . . . . . . . . . . . . 2 . . Relay Couplers Released . | . . . . . . . . . . . . . . . . . . . Fabnet Peak Effective % . | . . . . . . . . . . . . . . . . . . . Robots Rewired 12 | . . . . . . . . . . . . . . 12 . . . . Allies Hacked 1 | . . . . . . . . . . . . . . . . . 1 . Hacks Repelled . | . . . . . . . . . . . . . . . . . . . Allies | -11 -10 -10 -9 -9 -7 -6 -6 -5 -5 -5 -5 -4 -4 -4 -4 -3 -2 -2 -------- Run | Yrd Mat Min Mat Min Zio Pro Fac Fac Upp Upp Zhi Pro Fac Ext Cet Res Res Tes Total Allies 51 | . . . . . 4 . 1 . . . . . . 28 5 9 4 . Largest Group 17 | . . . . . 4 4 1 . . . . . . 17 14 12 2 . Highest-Rated Group 1027 | . . . . . 157 157 28 . . . . . . 809 902 1027 269 . Highest-Rated Ally 269 | . . . . . 41 41 28 . . . . . . 159 136 269 269 . Zionite Dispatches 14 | . . . . . . . 1 . . . . . . 4 . 6 3 . Heavy 2 | . . . . . . . . . . . . . . . . 2 . . Light 1 | . . . . . . . . . . . . . . 1 . . . . Fire 2 | . . . . . . . . . . . . . . 2 . . . . Hacker 1 | . . . . . . . . . . . . . . . . 1 . . Demo 2 | . . . . . . . . . . . . . . 1 . . 1 . Experimental 2 | . . . . . . . . . . . . . . . . 1 1 . Melee Resupply 1 | . . . . . . . 1 . . . . . . . . . . . Infowar Resupply 1 | . . . . . . . . . . . . . . . . 1 . . Hover Resupply 1 | . . . . . . . . . . . . . . . . 1 . . Zionite Resupply 1 | . . . . . . . . . . . . . . . . . 1 . Total Orders 7 | . . . . . . . . . . . . . . 1 2 3 1 . GUARD 3 | . . . . . . . . . . . . . . . 2 1 . . AID 1 | . . . . . . . . . . . . . . 1 . . . . DROP 3 | . . . . . . . . . . . . . . . . 2 1 . Ally Attacks 463 | . . . . . . 24 . . . . . . . 202 98 124 15 . Total Damage 19687 | . . . . . . 1362 . . . . . . . 7659 2980 6219 1467 . Kills 105 | . . . . . . 7 . . . . . . . 44 13 35 6 . Allies Corrupted 3 | . . . . . . . . . . . . . . . . 2 1 . Allies Melted 1 | . . . . . . 1 . . . . . . . . . . . . Intel | -11 -10 -10 -9 -9 -7 -6 -6 -5 -5 -5 -5 -4 -4 -4 -4 -3 -2 -2 ------- Run | Yrd Mat Min Mat Min Zio Pro Fac Fac Upp Upp Zhi Pro Fac Ext Cet Res Res Tes Active Infowar (turns) 2680 | . . . . . . . 770 . 5 164 31 . 52 390 . 841 427 . Sensors 822 | . . . . . . . 770 . . . . . 52 . . . . . Seismic 427 | . . . . . . . . . . . . . . . . . 427 . Machine Analysis 138 | . . . . . . . . . . . . . . . . 138 . . Cloaking 200 | . . . . . . . . . 5 164 31 . . . . . . . Jamming 1234 | . . . . . . . . . . . . . 3 390 . 841 . . Robot Analysis Total 4 | . . . . . . . . . . . 4 . . . . . . . Derelict Logs Recovered 5 | . . . . . 2 . . . 1 . . 2 . . . . . . Drone Launches . | . . . . . . . . . . . . . . . . . . . Drone Recoveries . | . . . . . . . . . . . . . . . . . . . Zionite Intel Received 4 | . . . . . . . 3 . . . . . . 1 . . . . Emergency Access 2 | . . . . . . . 1 . . . . . . 1 . . . . Trap Installations 1 | . . . . . . . 1 . . . . . . . . . . . Active Garrisons 1 | . . . . . . . 1 . . . . . . . . . . . Exploration | -11 -10 -10 -9 -9 -7 -6 -6 -5 -5 -5 -5 -4 -4 -4 -4 -3 -2 -2 ------------- Run | Yrd Mat Min Mat Min Zio Pro Fac Fac Upp Upp Zhi Pro Fac Ext Cet Res Res Tes Turns Passed 9333 | 70 350 170 293 48 1552 897 969 353 102 164 52 95 204 1447 610 1218 548 191 Spaces Moved 6501 | 42 185 86 125 27 953 433 662 236 173 231 140 315 153 1013 323 661 553 190 Core 52 | 4 . 1 . . . 10 2 4 . . . . . . . 22 1 8 Treads 2710 | . . 66 125 27 953 312 . . . . . . . 393 323 494 . 17 Legs 1103 | 38 185 19 . . . 111 489 24 . . . . 94 . . . 141 2 Wheels . | . . . . . . . . . . . . . . . . . . . Hover 1019 | . . . . . . . 7 . . . . . 39 620 . 145 45 163 Flight 1617 | . . . . . . . 164 208 173 231 140 315 20 . . . 366 . Fastest Speed 23 | 50 120 120 160 160 160 50 32 23 23 27 30 30 30 48 164 50 28 50 Average Speed 108 | 135 120 152 160 160 160 147 120 36 25 28 30 30 83 103 164 136 70 72 Slowest Speed 450 | 190 120 300 160 160 160 240 200 450 29 110 30 30 200 250 164 235 220 170 Overloaded Moves . | . . . . . . . . . . . . . . . . . . . Propulsion Burnouts . | . . . . . . . . . . . . . . . . . . . Robots Hopped 19 | . . . . . . . 7 . . . . . . . . . 12 . Potential Cave-ins . | . . . . . . . . . . . . . . . . . . . Cave-ins Triggered . | . . . . . . . . . . . . . . . . . . . Exploration Rate (%) 38 | 4 40 26 13 9 90 60 21 8 32 47 59 58 6 97 85 20 27 26 Regions Visited 18 Branch Regions 11 Pre-discovered Areas 7 | . . . . . 2 . . . 1 . 3 1 . . . . . . Known Exits Taken 9 | . . . . . . . 1 1 1 1 1 1 1 1 1 . . . Unknown Exits Taken 9 | 1 1 1 1 1 1 1 . . . . . . . . . 1 1 . Scrap Searched 8 | . . . . . 1 2 . . 2 2 . 1 . . . . . . Spaces Dug 5 | . . . . . . . . . . . . . . . . 4 1 . Terrain Destroyed 224 | . . . . . . 79 93 1 . . . . 28 4 . 12 5 2 Melee . | . . . . . . . . . . . . . . . . . . . Projectile 37 | . . . . . . 1 11 1 . . . . 1 4 . 12 5 2 AOE 187 | . . . . . . 78 82 . . . . . 27 . . . . . Terrain Rammed . | . . . . . . . . . . . . . . . . . . . Walls Destroyed . | . . . . . . . . . . . . . . . . . . . Machines Disabled . | . . . . . . . . . . . . . . . . . . . Actions | -11 -10 -10 -9 -9 -7 -6 -6 -5 -5 -5 -5 -4 -4 -4 -4 -3 -2 -2 --------- Run | Yrd Mat Min Mat Min Zio Pro Fac Fac Upp Upp Zhi Pro Fac Ext Cet Res Res Tes Total 8179 | 50 257 108 177 32 984 601 782 456 222 328 149 314 202 1349 405 883 643 237 Wait 715 | . 19 5 9 6 12 73 29 155 29 87 . . 7 101 74 95 2 12 Move 6448 | 41 184 85 124 26 952 432 648 235 172 230 139 314 152 1012 322 660 530 190 Hop 16 | . . . . . . . 6 . . . . . . . . . 10 . Pick Up 106 | 2 11 3 5 . 7 7 11 7 3 2 . . 3 23 1 9 7 5 Fast Attach 178 | 6 3 2 5 . 3 13 28 14 3 2 5 . 16 17 1 23 26 11 Attach 87 | . . . 3 . . 9 16 8 4 . . . 4 12 1 13 14 3 Detach 44 | . 1 . . . . 1 5 3 2 2 1 . 1 11 1 6 7 3 Swap 49 | . 2 2 2 . . 11 7 1 . 2 . . . 9 1 7 4 1 Drop 109 | . 8 3 6 . 10 7 12 3 3 3 4 . 1 19 4 11 9 6 Fire 276 | 1 29 8 23 . . 48 20 3 3 . . . 10 44 . 51 34 2 Melee 37 | . . . . . . . . 26 3 . . . 8 . . . . . Ram 4 | . . . . . . . . 1 . . . . . . . 1 . 2 Kick . | . . . . . . . . . . . . . . . . . . . Crush 10 | . . . . . . . . . . . . . . 1 . 7 . 2 Escape Stasis 8 | . . . . . . . . . . . . . . 8 . . . . Rewire 92 | . . . . . . . . . . . . . . 92 . . . . Trap . | . . . . . . . . . . . . . . . . . . . Miscellaneous . | . . . . . . . . . . . . . . . . . . . Route ------- -11/Scrapyard -10/Materials -10/Mines -9/Materials -9/Mines -7/Zion -6/Proximity Caves -6/Factory (discovered 3 exits: *Fac x2 / Low) -5/Factory -5/Upper Caves -5/Upper Caves -5/Zhirov -4/Proximity Caves -4/Factory -4/Extension (discovered 2 exits: *Res / *Cet) -4/Cetus (discovered 2 exits: *Res / *Arc) -3/Research (discovered 2 exits: *Res / Arm) -2/Research -2/Testing History --------- Turn | Location | Event 42 | -11/Scrapyard | Discovered new exit (range 13) 71 | -11/Scrapyard | Entered Materials 306 | -10/Materials | Build established: Mutant 394 | -10/Materials | Discovered new exit (range 11) 421 | -10/Materials | Entered Mines 426 | -10/Mines | Met a Derelict who couldn't figure out how to use a Trap Extractor 583 | -10/Mines | Discovered new exit (range 5) 591 | -10/Mines | Entered Materials 591 | -9/Materials | Evolved 2 slots: Utility x2 696 | -9/Materials | Lost 3 parts (1p1n1u) 797 | -9/Materials | Discovered new exit (range 14) 884 | -9/Materials | Entered Mines 923 | -9/Mines | A Derelict revealed a hidden shortcut to a safe place 932 | -9/Mines | Entered Zion 972 | -7/Zion | Learned 4 Factory zone layouts 1102 | -7/Zion | Learned location of Data Miner (-6) 1322 | -7/Zion | Learned location of 1 exit from Factory 1691 | -7/Zion | Learned Factory terminal intel 2024 | -7/Zion | Met Imprinter 2053 | -7/Zion | Imprinted 2056 | -7/Zion | Declared Zion's savior 2379 | -7/Zion | Learned location of Warlord (-4) 2392 | -7/Zion | Discovered new exit (range 16) 2419 | -7/Zion | Found Prototype Special Weapon 2422 | -7/Zion | Found Prototype Special Weapon 2424 | -7/Zion | Found Prototype Special Weapon 2427 | -7/Zion | Found Prototype Special Weapon 2427 | -7/Zion | Identified RU-N14's Throwing Claymores (x4) 2484 | -7/Zion | Entered Proximity Caves 2484 | -6/Proximity Caves | Accompanied by 4 allies 2654 | -6/Proximity Caves | Spotted B-75 Beast 2678 | -6/Proximity Caves | Allies destroyed B-75 Beast 2941 | -6/Proximity Caves | Attracted the attention of an 0b10 outpost 2997 | -6/Proximity Caves | Build established: Scavenger-Mutant 3014 | -6/Proximity Caves | Lost 3 parts (2n1w) 3167 | -6/Proximity Caves | Core integrity fell below 50% 3182 | -6/Proximity Caves | Released all parts (6) 3272 | -6/Proximity Caves | Attracted the attention of an 0b10 checkpoint 3294 | -6/Proximity Caves | Core integrity fell below 20% 3368 | -6/Proximity Caves | Discovered new exit (range 12) 3381 | -6/Proximity Caves | Entered Factory 3381 | -6/Factory | Evolved 6 slots: Power x1, Propulsion x2, Utility x2, Weapon x1 3382 | -6/Factory | Identified exit to Factory 3383 | -6/Factory | Identified exit to Lower Caves 3384 | -6/Factory | Loaded intel: 26 terminal locations 3664 | -6/Factory | Build established: Scavenger-Skirmisher 3670 | -6/Factory | Retrieved Zion intel report: Trap Installations 3765 | -6/Factory | Retrieved Zion intel report: Emergency Access 3800 | -6/Factory | Retrieved Zion intel report: Active Garrisons 4126 | -6/Factory | Zion Melee Resupply teleported in 4176 | -6/Factory | Cargo convoy interrupted 4205 | -6/Factory | Destroyed 10 combat bots 4218 | -6/Factory | Core integrity fell below 50% 4267 | -6/Factory | Core integrity fell below 20% 4282 | -6/Factory | Lost 22 parts (6p8n5u3w) 4350 | -6/Factory | Entered another Factory area 4350 | -5/Factory | Evolved 2 slots: Propulsion x1, Utility x1 4443 | -5/Factory | Core integrity fell below 50% 4505 | -5/Factory | Lost 12 parts (2p5n2u3w) 4702 | -5/Factory | Discovered new exit (range 4) 4702 | -5/Factory | Identified exit to Upper Caves 4703 | -5/Factory | Entered Upper Caves 4773 | -5/Upper Caves | Learned location of Armory (-3) 4797 | -5/Upper Caves | Attracted the attention of an 0b10 outpost 4803 | -5/Upper Caves | Discovered new exit (range 6) 4804 | -5/Upper Caves | Identified exit to Upper Caves 4805 | -5/Upper Caves | Entered another Upper Caves area 4821 | -5/Upper Caves | Build established: Scavenger-Sprinter 4824 | -5/Upper Caves | Encountered a Warlord checkpoint 4956 | -5/Upper Caves | Discovered new exit (range 11) 4967 | -5/Upper Caves | Identified exit to Zhirov 4969 | -5/Upper Caves | Entered Zhirov 4969 | -5/Zhirov | Discovered new exit (range 3) 4975 | -5/Zhirov | Met Zhirov 4985 | -5/Zhirov | Learned location of Quarantine (-3) 4985 | -5/Zhirov | Learned location of Testing (-2) 4985 | -5/Zhirov | Learned location of Command (-1) 4988 | -5/Zhirov | Zhirov requested help retrieving the SGEMP Prototype 4993 | -5/Zhirov | Found Alien Artifact 4993 | -5/Zhirov | Identified Integrated Dissipator 4993 | -5/Zhirov | Installed Integrated Dissipator, increased core heat dissipation (+20) 5021 | -5/Zhirov | Identified exit to Proximity Caves 5021 | -5/Zhirov | Entered Proximity Caves 5038 | -4/Proximity Caves | Learned location of 1 exit from Research 5115 | -4/Proximity Caves | Discovered new exit (range 3) 5115 | -4/Proximity Caves | Identified exit to Factory 5116 | -4/Proximity Caves | Entered Factory 5116 | -4/Factory | Evolved 2 slots: Propulsion x1, Utility x1 5177 | -4/Factory | Lost 6 parts (1p4n1u) 5310 | -4/Factory | Discovered new exit (range 16) 5320 | -4/Factory | Identified exit to Extension 5320 | -4/Factory | Entered Extension 5347 | -4/Extension | Lost 16 parts (3p6n4u3w) 5379 | -4/Extension | Zion Light squad teleported in 5390 | -4/Extension | Rescued A7 5417 | -4/Extension | Build established: Mutant 5463 | -4/Extension | Zion Demo squad teleported in 5726 | -4/Extension | Spotted B-86 Titan 5731 | -4/Extension | Spotted B-86 Titan 5736 | -4/Extension | Allies destroyed B-86 Titan 5753 | -4/Extension | Allies destroyed B-86 Titan 5778 | -4/Extension | Lost 3 allies 5784 | -4/Extension | Found Prototype Protection 5847 | -4/Extension | Core integrity fell below 50% 6033 | -4/Extension | Build established: Scavenger-Mutant 6060 | -4/Extension | Discovered new exit (range 16) 6062 | -4/Extension | Discovered new exit (range 15) 6395 | -4/Extension | Zion Fire squad teleported in 6405 | -4/Extension | Retrieved Zion intel report: Emergency Access 6406 | -4/Extension | Zion Fire squad teleported in 6483 | -4/Extension | Rescued a captive Derelict 6484 | -4/Extension | Rescued a captive Derelict 6570 | -4/Extension | First assault squad dispatched 6684 | -4/Extension | Build established: Scavenger-Tank 6758 | -4/Extension | Identified exit to Cetus 6762 | -4/Extension | Terminal network hard line cut 6767 | -4/Extension | Entered Cetus 6767 | -4/Cetus | Accompanied by 14 allies (A7) 6772 | -4/Cetus | Acquired a Cetus Manufacturing Module code from A7 6789 | -4/Cetus | Spotted Cetus Guard 6789 | -4/Cetus | Spotted Cetus Guard 6806 | -4/Cetus | Spotted Cetus Guard 6807 | -4/Cetus | Allies destroyed Cetus Guard 6808 | -4/Cetus | Spotted Cetus Guard 6811 | -4/Cetus | Allies destroyed Cetus Guard 6812 | -4/Cetus | Allies destroyed Cetus Guard 6815 | -4/Cetus | Allies destroyed Cetus Guard 6846 | -4/Cetus | Lost 4 allies 6881 | -4/Cetus | Started Cetus Manufacturing Module 6906 | -4/Cetus | Manufactured an Enhanced Grunt 6923 | -4/Cetus | Escorted A7 to Cetus Mainframe 6931 | -4/Cetus | Manufactured an Enhanced Grunt 6956 | -4/Cetus | Manufactured an Enhanced Grunt 6981 | -4/Cetus | Manufactured an Enhanced Grunt 7006 | -4/Cetus | Manufactured an Enhanced Grunt 7045 | -4/Cetus | Discovered new exit (range 16) 7116 | -4/Cetus | Spotted Cetus Guard 7118 | -4/Cetus | Spotted Cetus Guard 7119 | -4/Cetus | Allies destroyed Cetus Guard 7122 | -4/Cetus | Allies destroyed Cetus Guard 7123 | -4/Cetus | Spotted Cetus Guard 7127 | -4/Cetus | Allies destroyed Cetus Guard 7155 | -4/Cetus | Discovered new exit (range 16) 7165 | -4/Cetus | Scared off Revision 17 7170 | -4/Cetus | Lost 3 allies 7178 | -4/Cetus | Identified exit to Research 7275 | -4/Cetus | Identified exit to Archives 7377 | -4/Cetus | Entered Research 7377 | -3/Research | Accompanied by 10 allies (A7) 7377 | -3/Research | Evolved 2 slots: Utility x2 7378 | -3/Research | Identified exit to Armory 7382 | -3/Research | Received a hacking code to weaken MAIN.C 7535 | -3/Research | Zion Experimental squad teleported in 7668 | -3/Research | Zion Heavy squad teleported in 7757 | -3/Research | Found Imp. Powered Armor 7762 | -3/Research | Zion Infowar Resupply teleported in 7974 | -3/Research | Found Zio. Shade Armor 8101 | -3/Research | Zion Hacker squad teleported in 8125 | -3/Research | Lost 3 allies 8127 | -3/Research | First assault squad dispatched 8203 | -3/Research | Lost 3 allies 8269 | -3/Research | Cargo convoy interrupted 8297 | -3/Research | Spotted Executioner 8365 | -3/Research | Lost 3 parts (2p1n) 8391 | -3/Research | Zion Heavy squad teleported in 8409 | -3/Research | Garrison activated, responded to threat 8409 | -3/Research | Allies destroyed Executioner 8457 | -3/Research | Zion Hover Resupply teleported in 8477 | -3/Research | Lost 13 parts (6n6u1w) 8567 | -3/Research | Discovered new exit (range 13) 8582 | -3/Research | Core integrity fell below 50% 8595 | -3/Research | Entered another Research area 8595 | -2/Research | Evolved 2 slots: Propulsion x2 8622 | -2/Research | Lost 7 parts (1p2n3u1w) 8769 | -2/Research | Zion Zionite Resupply teleported in 8777 | -2/Research | Found Zio. Weapon Casing 8844 | -2/Research | Zion Experimental squad teleported in 8845 | -2/Research | First assault squad dispatched 8899 | -2/Research | Garrison activated, responded to threat 8909 | -2/Research | Found Zio. Shade Armor 8913 | -2/Research | Found Zio. Weapon Casing 8922 | -2/Research | Found Zio. Shade Armor 9086 | -2/Research | Zion Demo squad teleported in 9102 | -2/Research | Found Quantum Capacitor 9108 | -2/Research | Spotted B-90 Cyclops 9137 | -2/Research | Discovered new exit (range 16) 9143 | -2/Research | Entered Testing 9174 | -2/Testing | Lost 19 parts (3p8n8u) 9231 | -2/Testing | Core integrity fell below 50% 9280 | -2/Testing | Spotted Striker 9280 | -2/Testing | Spotted Striker 9331 | -2/Testing | Core integrity fell below 20% 9334 | -2/Testing | Destroyed by P-80 Master with Gamma Rifle Last Messages --------------- 09324_ Gravity Sphere disabled. 09325_ Slug penetrates Gravity Sphere. 09325_ Critical hit (Destroy). 09325_ Thunder Leg destroyed. 09326_ Door malfunctions. 09327_ Penetrated by Slug. 09327_ Slug penetrates Gravity Sphere. 09327_ Lgt. Antimatter Reactor destroyed. 09327_ Slug penetrates Gravity Sphere. 09327_ Antigrav Array destroyed. 09328_ Lgt. Particle Reactor destroyed. 09328_ Penetrated by Slug. 09328_ Thunder Leg destroyed. 09330_ Penetrated by Slug. 09331_ Slug penetrates H-88 Terminator. 09331_ Adv. Target Analyzer destroyed. 09333_ Gravity Sphere collapses. 09333_ Gravity Sphere disabled. 09333_ Penetrated by Slug. 09333_ Slug penetrates Wall. Map ----- +----------------------------------------------------+ | ?????????????????????????????????????????????????? | | ?????????????????????????????????????????????????? | | ?????????????????????????????????????????????????? | | ????????????????????????????########?????????????? | | ?????????????????#########? #?????????????? | | ??????????####+### #? #?????????????? | | ??????????# *! # ! ] #?????????????? | | ??????????# * # ! #?????????????? | | ??????????# / #?????????????? | | ??????????# ! # """ """ #?????????????? | | ??????????# # """ ""????????????????? | | ??????????# """ """ * #?""" "?????????????????? | | #########?# """ """ #########?????????????????? | | " " """ "" # * =#?????????????????? | | #####?????# + #?????????????????? | | ########??# """ """ # #?????????????????? | | #??# """ """ #??######?????????????????? | | """" #??# """ "" p #?????????????????????????? | | """" !#??# u h pp#####?????????????????????? | | """" #??# """ hhh #?????????????????????? | | """" !#??# """u #?????????????????????? | | #??# "" m ##????????????????????? | | ##"######## #????????????????????? | | ?# """"" + * #????????????????????? | | ?# ""T""%# ######## #????????????????????? | | ?#[ !% # #??????######@ #????????????????????? | | ?# = # #???????????# #????????????????????? | | ?########## #???????????# ???????????????????? | | ???######## #??????????? ?????????????????? | | ?+ #??????????? c???????????????? | | ???######## #???????????###########??????????????? | | ??????????# #????????????????????????????????????? | | ??????????# #????????????????????????????????????? | | ??????????# #????????????????????????????????????? | | ??######### ###??????????????????????????????????? | | ??# [ ###????????????????????????????????? | | ?## ""#????????????????????????????????? | | """ ""#????????????????????????????????? | | """ ""#????????????????????????????????? | | """ ! T#????????????????????????????????? | | ! ""#????????????????????????????????? | | """ ""#????????????????????????????????? | | """ ""#????????????????????????????????? | | """ ###????????????????????????????????? | | #??????????????????????????????????? | | #??????????????????????????????????? | | ### #??????????????????????????????????? | | ??# #??????????????????????????????????? | | ??# [ #????" "???????????????????????????? | | ??# *] / """ "???????????????????????????? | +----------------------------------------------------+ Best States ------------- Heat Dissipation 128 Energy Generation 39 Energy Capacity 990 Matter Stores 300 Matter Capacity 300 Sight Range 16 Robot Scan Range 16 Terrain Scan Density 10 Jamming Range 16 Cloak Strength 2 Power Amplification 30 Corruption Block 15 Armor Coverage 1225 Resistance: KI 30 Resistance: TH 30 Resistance: EX 30 Resistance: EM 30 Resistance: I 30 Resistance: S 30 Resistance: P 30 Core Shielding 40 Power Shielding 66 Propulsion Shielding 66 Utility Shielding 33 Weapon Shielding 100 Phase Shifting 10 Evasion (%) 69 Melee Accuracy 6 Target Analysis 8 Armor Integrity Analysis 30 Recoil Reduction 6 Energy Filtering 30 Particle Charging 15 Offensive Hacking 12 Item Schematics ----------------- Lgt. Treads | -9/Materials | Scanalyzed Matter Filter | -7/Zion | Archive Adv. Terrain Scanner | -7/Zion | Archive Imp. Carbon-fiber Leg | -7/Zion | Archive Imp. Actuator Array | -7/Zion | Archive System Restoration Module | -7/Zion | Archive Lyr. Medium Armor Plating | -7/Zion | Archive Core Analyzer | -7/Zion | Archive Tesla Rifle | -7/Zion | Archive Lrn. Proton Cannon | -7/Zion | Archive Transmission Jammer | -7/Zion | Archive Power Amplifier | -7/Zion | Archive Lgt. Fission Core | -7/Zion | Archive Energy Well | -7/Zion | Archive Hvy. Missile Launcher | -7/Zion | Archive Med. Treads | -7/Zion | Archive Assault Drone Bay | -5/Zhirov | Free Exp. Heat Sink | -5/Zhirov | Free Exp. Optical Array | -5/Zhirov | Free Imp. Arc Thrower | -5/Zhirov | Free Robot Schematics ------------------ L-41 Fighter | -7/Zion | Archive R-06 Scavenger | -7/Zion | Archive A-02 Transporter | -7/Zion | Archive Fabricated ------------ Nothing Repaired ---------- Nothing Alien Tech Used ----------------- Integrated Dissipator Achievements -------------- Factory Defaults Generalissimo Main Advantage Project G-00 Revising The Future Challenges ------------ None Game ------ Seed MasterPitchforkClaws Manual? 0 Play Time 03:02:45 Cumulative 136.2 hours Start 2025.08.03 @ 17:15:04 End 2025.08.03 @ 21:35:29 Sessions 1 Manual Loads 0 Difficulty Rogue Special Mode None Game No. 127 Rogue 124 Adventurer 1 Explorer 2 Win Type - Total 0 Types 0/0/0/0/0/0/0/0/0/0 Lore% 46 Gallery% 59 Achievement% 44 Wizard Run 0 Options --------- Layout 0 ASCII 0 Keyboard 0 Movement Mouse Keybinds 0 Fullscreen 2 Font 24/Smallcaps Map View 76x50 Zoom Use 2% Tactical HUD 1 Map Filters NONE Filters NONE Steam 1 RUN: 2df694ac-caf8-44fb-a64c-074167c4fbbb